[Event "RUS-ch Rapid Women 2021"]
[White "Kovanova,Baira"]
[Black "Nur-Mukhametova,Alisa"]
[Site "Sochi"]
[Round "1.1"]
[Annotator "NA"]
[Result "1/2-1/2"]
[Date "2021.10.12"]
[WhiteElo "2331"]
[BlackElo "2225"]
[PlyCount "136"]
[TimeControl "5400+30"]

1. e4 {[%emt 1:15:41]} c5 {[%emt 1:15:41]} 2. Nf3 {[%emt 0:0:22]} Nc6 {[%emt 0:0:31]
} 3. Bb5 {[%emt 0:0:22]} e6 {[%emt 0:0:23]} 4. 0-0 {[%emt 0:0:0]} Nge7 {[%emt 0:0:21]} 5. Re1 {[%emt 0:0:23]} a6 {[%emt 0:0:24]} 6. Bf1 {[%emt 0:0:22]
} d5 {[%emt 0:0:29]} 7. exd5 {[%emt 0:1:1]} Nxd5 {[%emt 0:0:0]} 8. d4 {[%emt 0:0:25]} Nf6 {[%emt 0:0:22]} 9. c3 {[%emt 0:0:34]} cxd4 {[%emt 0:0:50]
} 10. cxd4 {[%emt 0:0:22]} Be7 {[%emt 0:0:25]} 11. Nc3 {[%emt 0:0:34]
} 0-0 {[%emt 0:0:22]} 12. Bf4 {[%emt 0:1:9]} b5 {[%emt 0:0:0]} 13. Rc1 {[%emt 0:0:50]} Bb7 {[%emt 0:0:22]} 14. Bd3 {[%emt 0:0:53]} Nb4 {[%emt 0:3:10]} 15. Bb1 {[%emt 0:0:24]} Nbd5 {[%emt 0:0:29]} 16. Be5 {[%emt 0:1:1]
} Nxc3 {[%emt 0:1:33]} 17. bxc3 {[%emt 0:1:30]} Nd7 {[%emt 0:0:0]} 18. Qd3 {[%emt 0:2:4]} f5 {[%emt 0:1:29]} 19. Bf4 {[%emt 0:1:4]} Bd5 {[%emt 0:0:43]} 20. h3 {[%emt 0:1:26]} Rc8 {[%emt 0:3:30]} 21. Qe3 {[%emt 0:1:14]
} Nf6 {[%emt 0:1:45]} 22. Bd3 {[%emt 0:5:0]} Ba3 {[%emt 0:0:0]} 23. Rc2 {[%emt 0:0:22]} Ne4 {[%emt 0:0:39]} 24. Ng5 {[%emt 0:3:1]} Nxg5 {[%emt 0:0:58]} 25. Bxg5 {[%emt 0:0:21]} Qa5 {[%emt 0:0:42]} 26. Be2 {[%emt 0:0:53]
} Be4 {[%emt 0:0:32]} 27. Bd3 {[%emt 0:0:21]} Bd5 {[%emt 0:0:0]} 28. Qg3 {[%emt 0:0:47]} Qc7 {[%emt 0:0:37]} 29. Bf4 {[%emt 0:0:23]} Qd7 {[%emt 0:0:30]} 30. Qe3 {[%emt 0:0:58]} Be7 {[%emt 0:0:30]} 31. g4 {[%emt 0:0:0]} Bd6 {[%emt 0:0:29]} 32. g5 {[%emt 0:0:42]} Bxf4 {[%emt 0:0:30]} 33. Qxf4 {[%emt 0:0:20]} Bb7 {[%emt 0:0:32]} 34. Qe5 {[%emt 0:0:32]} Rfe8 {[%emt 0:0:22]
} 35. Re3 {[%emt 0:0:32]} Qc6 {[%emt 0:0:26]} 36. f3 {[%emt 0:0:0]} Qd5 {[%emt 0:0:35]} 37. Kf2 {[%emt 0:0:23]} Qxe5 {[%emt 0:0:34]} 38. Rxe5 {[%emt 0:0:21]} g6 {[%emt 0:0:32]} 39. c4 {[%emt 0:0:24]} bxc4 {[%emt 0:0:30]
} 40. Rxc4 {[%emt 0:0:21]} Bd5 {[%emt 0:0:25]} 41. Ra4 {[%emt 0:0:58]
} Rc3 {[%emt 0:0:27]} 42. Be2 {[%emt 0:0:26]} Rc2 {[%emt 0:0:0]} 43. a3 {[%emt 0:0:52]} Rb8 {[%emt 0:0:33]} 44. Rb4 {[%emt 0:0:47]} Rxb4 {[%emt 0:0:21]} 45. axb4 {[%emt 0:0:20]} f4 {[%emt 0:0:23]} 46. Ke1 {[%emt 0:0:35]
} Rb2 {[%emt 0:0:35]} 47. Bxa6 {[%emt 0:0:21]} Rxb4 {[%emt 0:0:0]} 48. Bd3 {[%emt 0:0:46]} Rxd4 {[%emt 0:0:31]} 49. Ke2 {[%emt 0:0:23]} Kf7 {[%emt 0:0:27]} 50. Be4 {[%emt 0:0:24]} Bc4+ {[%emt 0:0:56]} 51. Ke1 {[%emt 0:0:21]
} Bd5 {[%emt 0:0:22]} 52. Ke2 {[%emt 0:0:24]} Bc4+ {[%emt 0:0:0]} 53. Ke1 {[%emt 0:0:22]} Bd5 {[%emt 0:0:21]} 54. Ke2 {[%emt 0:0:21]} Ke7 {[%emt 0:0:49]} 55. Bxd5 {[%emt 0:0:20]} Rxd5 {[%emt 0:0:21]} 56. Re4 {[%emt 0:0:21]
} e5 {[%emt 0:0:42]} 57. Ra4 {[%emt 0:0:27]} Ke6 {[%emt 0:0:0]} 58. h4 {[%emt 0:0:51]} Rd6 {[%emt 0:0:32]} 59. Ra7 {[%emt 0:0:25]} Rd7 {[%emt 0:0:23]} 60. Ra6+ {[%emt 0:0:43]} Rd6 {[%emt 0:0:34]} 61. Ra7 {[%emt 0:0:20]
} Rd7 {[%emt 0:0:23]} 62. Ra6+ {[%emt 0:0:23]} Kd5 {[%emt 0:0:0]} 63. Ra5+ {[%emt 0:0:27]} Kd4 {[%emt 0:0:32]} 64. Ra4+ {[%emt 0:0:28]} Kc5 {[%emt 0:0:34]} 65. Ra5+ {[%emt 0:0:21]} Kd6 {[%emt 0:0:24]} 66. Ra6+ {[%emt 0:0:27]
} Ke7 {[%emt 0:0:36]} 67. Ra5 {[%emt 0:0:21]} Ke6 {[%emt 0:0:0]} 68. Ra6+ {[%emt 0:0:21]} Rd6 {[%emt 0:0:23]} 1/2-1/2

[Event "RUS-ch Rapid Women 2021"]
[White "Lapina,Maria"]
[Black "Kovalevskaya,Ekaterina"]
[Site "Sochi"]
[Round "1.2"]
[Annotator "NA"]
[Result "0-1"]
[Date "2021.10.12"]
[WhiteElo "1986"]
[BlackElo "2364"]
[PlyCount "97"]
[TimeControl "5400+30"]

1. d4 {[%emt 1:15:41]} d5 {[%emt 1:15:43]} 2. c4 {[%emt 0:0:22]} e6 {[%emt 0:0:0]} 3. Nc3 {[%emt 0:0:23]} c5 {[%emt 0:0:20]} 4. e3 {[%emt 0:0:46]} Nf6 {[%emt 0:0:26]} 5. Nf3 {[%emt 0:0:21]} Be7 {[%emt 0:0:38]} 6. cxd5 {[%emt 0:0:0]} exd5 {[%emt 0:0:21]} 7. Bb5+ {[%emt 0:1:29]} Bd7 {[%emt 0:0:52]} 8. Bxd7+ {[%emt 0:1:20]} Nbxd7 {[%emt 0:0:26]} 9. 0-0 {[%emt 0:0:23]} 0-0 {[%emt 0:0:24]
} 10. b3 {[%emt 0:0:23]} Rc8 {[%emt 0:4:23]} 11. Bb2 {[%emt 0:0:0]} c4 {[%emt 0:0:27]} 12. bxc4 {[%emt 0:2:54]} Rxc4 {[%emt 0:0:22]} 13. Ne5 {[%emt 0:0:36]} Rc8 {[%emt 0:0:41]} 14. Qb3 {[%emt 0:0:52]} Nb6 {[%emt 0:1:12]
} 15. Ba3 {[%emt 0:2:5]} Bxa3 {[%emt 0:4:19]} 16. Qxa3 {[%emt 0:0:21]
} Nc4 {[%emt 0:0:23]} 17. Qxa7 {[%emt 0:6:46]} Nxe5 {[%emt 0:0:0]} 18. dxe5 {[%emt 0:0:20]} Ng4 {[%emt 0:0:25]} 19. Qd4 {[%emt 0:3:9]} Rc4 {[%emt 0:1:31]} 20. Qd2 {[%emt 0:0:21]} Qc7 {[%emt 0:3:23]} 21. Nxd5 {[%emt 0:0:56]
} Qxe5 {[%emt 0:0:25]} 22. f4 {[%emt 0:0:32]} Qe4 {[%emt 0:0:0]} 23. Rac1 {[%emt 0:0:36]} Rc6 {[%emt 0:1:4]} 24. h3 {[%emt 0:0:27]} Rd6 {[%emt 0:0:45]} 25. hxg4 {[%emt 0:0:36]} Rxd5 {[%emt 0:0:23]} 26. Qe2 {[%emt 0:0:26]
} Rd3 {[%emt 0:0:26]} 27. Rfe1 {[%emt 0:0:30]} Re8 {[%emt 0:0:0]} 28. Kf2 {[%emt 0:0:25]} h6 {[%emt 0:0:35]} 29. Rcd1 {[%emt 0:0:36]} Ra3 {[%emt 0:0:29]} 30. Rd4 {[%emt 0:0:28]} Qe6 {[%emt 0:0:29]} 31. Rd2 {[%emt 0:0:28]
} Rea8 {[%emt 0:0:48]} 32. Ra1 {[%emt 0:0:38]} R3a4 {[%emt 0:0:0]} 33. Rb2 {[%emt 0:0:35]} b6 {[%emt 0:0:31]} 34. Kg1 {[%emt 0:0:28]} Ra3 {[%emt 0:0:33]} 35. Kf2 {[%emt 0:0:21]} Re8 {[%emt 0:0:32]} 36. Re1 {[%emt 0:0:20]
} Qc6 {[%emt 0:0:45]} 37. Rc2 {[%emt 0:0:26]} Qe4 {[%emt 0:0:0]} 38. Rb2 {[%emt 0:0:26]} Re6 {[%emt 0:0:25]} 39. Qf3 {[%emt 0:0:25]} Qc4 {[%emt 0:0:28]} 40. Qe2 {[%emt 0:0:24]} Qc5 {[%emt 0:0:26]} 41. Rc2 {[%emt 0:0:21]
} Qe7 {[%emt 0:0:28]} 42. Rc8+ {[%emt 0:0:15]} Kh7 {[%emt 0:0:0]} 43. Qc2+ {[%emt 0:0:57]} Rg6 {[%emt 0:0:37]} 44. Qe2 {[%emt 0:1:7]} Qh4+ {[%emt 0:0:43]} 45. Kg1 {[%emt 0:0:20]} Rxa2 {[%emt 0:0:28]} 46. Qxa2 {[%emt 0:0:42]
} Qxe1+ {[%emt 0:0:23]} 47. Kh2 {[%emt 0:0:20]} Rxg4 {[%emt 0:0:0]} 48. Qc2+ {[%emt 0:0:20]} g6 {[%emt 0:0:36]} 49. g3 {[%emt 0:0:52]} 0-1

[Event "RUS-ch Rapid Women 2021"]
[White "Goltseva,Ekaterina"]
[Black "Pedashenko,Anastasia"]
[Site "Sochi"]
[Round "1.3"]
[Annotator "NA"]
[Result "1-0"]
[Date "2021.10.12"]
[WhiteElo "2304"]
[BlackElo "1999"]
[PlyCount "49"]
[TimeControl "5400+30"]

1. d4 {[%emt 1:15:42]} Nf6 {[%emt 1:15:43]} 2. c4 {[%emt 0:0:22]} e6 {[%emt 0:0:0]} 3. g3 {[%emt 0:0:25]} d5 {[%emt 0:0:41]} 4. Nf3 {[%emt 0:0:23]} Be7 {[%emt 0:1:7]} 5. Bg2 {[%emt 0:0:23]} 0-0 {[%emt 0:0:24]} 6. 0-0 {[%emt 0:0:0]} c5 {[%emt 0:1:41]} 7. dxc5 {[%emt 0:2:46]} dxc4 {[%emt 0:1:0]} 8. Ne5 {[%emt 0:2:9]} Nbd7 {[%emt 0:2:55]} 9. Nxc4 {[%emt 0:0:43]} Nxc5 {[%emt 0:0:49]
} 10. Nc3 {[%emt 0:0:45]} a5 {[%emt 0:3:52]} 11. Qxd8 {[%emt 0:0:0]} Rxd8 {[%emt 0:0:40]} 12. Bf4 {[%emt 0:0:37]} Bd7 {[%emt 0:1:58]} 13. Bc7 {[%emt 0:2:27]} Re8 {[%emt 0:2:31]} 14. Bxa5 {[%emt 0:2:16]} Bc6 {[%emt 0:0:39]
} 15. b4 {[%emt 0:1:38]} Bxg2 {[%emt 0:0:35]} 16. Kxg2 {[%emt 0:0:22]
} Na6 {[%emt 0:1:26]} 17. Nb6 {[%emt 0:0:37]} Rad8 {[%emt 0:0:0]} 18. a3 {[%emt 0:0:31]} Rd2 {[%emt 0:0:40]} 19. Rfd1 {[%emt 0:0:55]} Rc2 {[%emt 0:0:26]} 20. Rac1 {[%emt 0:0:26]} Rxc1 {[%emt 0:1:6]} 21. Rxc1 {[%emt 0:0:20]
} Rd8 {[%emt 0:0:28]} 22. Nb5 {[%emt 0:1:0]} h6 {[%emt 0:0:0]} 23. Nc8 {[%emt 0:1:33]} Rd7 {[%emt 0:0:35]} 24. Nc7 {[%emt 0:1:24]} Nxc7 {[%emt 0:0:55]} 25. Rxc7 {[%emt 0:0:23]} 1-0

[Event "RUS-ch Rapid Women 2021"]
[White "Vifleemskaia,Svetlana"]
[Black "Niyazgulova,Marina"]
[Site "Sochi"]
[Round "1.4"]
[Annotator "NA"]
[Result "1/2-1/2"]
[Date "2021.10.12"]
[WhiteElo "1926"]
[BlackElo "2227"]
[PlyCount "62"]
[TimeControl "5400+30"]

1. d4 {[%emt 1:15:42]} d5 {[%emt 1:15:41]} 2. c4 {[%emt 0:0:22]} c6 {[%emt 0:0:0]} 3. cxd5 {[%emt 0:0:22]} cxd5 {[%emt 0:0:22]} 4. Bf4 {[%emt 0:0:22]} Nc6 {[%emt 0:0:29]} 5. e3 {[%emt 0:0:31]} Nf6 {[%emt 0:0:24]} 6. Nc3 {[%emt 0:0:22]
} a6 {[%emt 0:0:28]} 7. Be2 {[%emt 0:0:47]} e6 {[%emt 0:0:35]} 8. Rc1 {[%emt 0:0:47]} Bd6 {[%emt 0:0:26]} 9. Bxd6 {[%emt 0:1:6]} Qxd6 {[%emt 0:0:23]
} 10. f4 {[%emt 0:0:34]} 0-0 {[%emt 0:0:42]} 11. Nf3 {[%emt 0:0:0]} Ne4 {[%emt 0:1:21]} 12. 0-0 {[%emt 0:2:40]} f5 {[%emt 0:1:32]} 13. Ne5 {[%emt 0:1:18]} Bd7 {[%emt 0:1:10]} 14. a3 {[%emt 0:5:23]} Nxe5 {[%emt 0:1:43]
} 15. fxe5 {[%emt 0:0:36]} Qb6 {[%emt 0:1:17]} 16. b4 {[%emt 0:0:0]} Rac8 {[%emt 0:2:34]} 17. Nxe4 {[%emt 0:0:54]} Rxc1 {[%emt 0:1:24]} 18. Qxc1 {[%emt 0:0:24]} fxe4 {[%emt 0:2:22]} 19. Rxf8+ {[%emt 0:0:40]} Kxf8 {[%emt 0:0:21]} 20. Qc5+ {[%emt 0:0:27]} Qxc5 {[%emt 0:0:21]} 21. bxc5 {[%emt 0:0:24]
} Ke7 {[%emt 0:1:24]} 22. Kf2 {[%emt 0:0:25]} Kd8 {[%emt 0:0:0]} 23. Ke1 {[%emt 0:0:24]} Kc7 {[%emt 0:0:20]} 24. Kd2 {[%emt 0:0:23]} a5 {[%emt 0:0:29]} 25. Kc3 {[%emt 0:1:13]} b6 {[%emt 0:0:54]} 26. cxb6+ {[%emt 0:1:0]
} Kxb6 {[%emt 0:0:22]} 27. Kb3 {[%emt 0:0:37]} Bb5 {[%emt 0:0:0]} 28. Bg4 {[%emt 0:1:38]} Bd7 {[%emt 0:0:22]} 29. Be2 {[%emt 0:0:22]} Bb5 {[%emt 0:0:37]} 30. Bg4 {[%emt 0:0:21]} Bd7 {[%emt 0:0:21]} 31. Be2 {[%emt 0:0:22]
} Bb5 {[%emt 0:0:21]} 1/2-1/2

[Event "RUS-ch Rapid Women 2021"]
[White "Chernyak,Viktoria"]
[Black "Kiseljova,Marya"]
[Site "Sochi"]
[Round "1.5"]
[Annotator "NA"]
[Result "1-0"]
[Date "2021.10.12"]
[WhiteElo "2285"]
[BlackElo "2031"]
[PlyCount "122"]
[TimeControl "5400+30"]

1. Nf3 {[%emt 1:15:40]} d5 {[%emt 1:15:41]} 2. e3 {[%emt 0:0:24]} Nf6 {[%emt 0:0:29]
} 3. c4 {[%emt 0:0:22]} e6 {[%emt 0:0:23]} 4. Nc3 {[%emt 0:0:0]} c5 {[%emt 0:0:35]} 5. cxd5 {[%emt 0:0:47]} exd5 {[%emt 0:0:26]} 6. d4 {[%emt 0:0:56]
} Nc6 {[%emt 0:0:45]} 7. Be2 {[%emt 0:1:21]} cxd4 {[%emt 0:0:0]} 8. Nxd4 {[%emt 0:0:35]} Bc5 {[%emt 0:1:16]} 9. Nb3 {[%emt 0:1:16]} Bb6 {[%emt 0:0:26]} 10. Bf3 {[%emt 0:0:24]} Be6 {[%emt 0:0:39]} 11. 0-0 {[%emt 0:0:34]
} 0-0 {[%emt 0:0:22]} 12. Nb5 {[%emt 0:3:2]} Ne5 {[%emt 0:0:0]} 13. Be2 {[%emt 0:0:34]} a6 {[%emt 0:1:38]} 14. N5d4 {[%emt 0:0:28]} Qd6 {[%emt 0:0:39]} 15. h3 {[%emt 0:2:23]} Bc7 {[%emt 0:0:55]} 16. f4 {[%emt 0:0:0]} Nc4 {[%emt 0:2:3]} 17. Bd3 {[%emt 0:1:7]} b5 {[%emt 0:1:13]} 18. Rf3 {[%emt 0:0:58]} Ne4 {[%emt 0:1:9]} 19. Ne2 {[%emt 0:1:56]} f5 {[%emt 0:0:0]} 20. Nbd4 {[%emt 0:0:21]} Bd7 {[%emt 0:0:34]} 21. b3 {[%emt 0:0:32]} Na5 {[%emt 0:1:18]} 22. Bb2 {[%emt 0:0:29]} Bd8 {[%emt 0:0:57]} 23. Qe1 {[%emt 0:1:44]
} Nb7 {[%emt 0:0:44]} 24. Rd1 {[%emt 0:0:26]} Bf6 {[%emt 0:0:0]} 25. Bb1 {[%emt 0:1:8]} Qe7 {[%emt 0:0:30]} 26. Nc3 {[%emt 0:0:59]} Be6 {[%emt 0:1:0]} 27. Kh2 {[%emt 0:2:48]} Nxc3 {[%emt 0:0:25]} 28. Bxc3 {[%emt 0:0:23]
} g6 {[%emt 0:0:25]} 29. Nc6 {[%emt 0:0:52]} Qe8 {[%emt 0:0:0]} 30. Bxf6 {[%emt 0:0:32]} Rxf6 {[%emt 0:0:21]} 31. Ne5 {[%emt 0:0:27]} Rc8 {[%emt 0:0:36]} 32. Rf2 {[%emt 0:0:31]} Nd6 {[%emt 0:0:23]} 33. Qa5 {[%emt 0:0:53]
} Bf7 {[%emt 0:0:51]} 34. Rff1 {[%emt 0:1:1]} Ne4 {[%emt 0:0:0]} 35. Rc1 {[%emt 0:0:19]} Re6 {[%emt 0:0:56]} 36. Rfd1 {[%emt 0:0:33]} Rxc1 {[%emt 0:0:31]} 37. Rxc1 {[%emt 0:0:21]} Rxe5 {[%emt 0:0:22]} 38. fxe5 {[%emt 0:0:25]} Qxe5+ {[%emt 0:0:20]} 39. Kg1 {[%emt 0:0:21]} Ng3 {[%emt 0:0:0]} 40. Qe1 {[%emt 0:0:36]} d4 {[%emt 0:0:36]} 41. exd4 {[%emt 0:0:47]} Qxd4+ {[%emt 0:0:20]} 42. Kh2 {[%emt 0:0:28]} Nh5 {[%emt 0:0:30]} 43. Rc8+ {[%emt 0:0:22]
} Kg7 {[%emt 0:0:21]} 44. Qc3 {[%emt 0:0:23]} Qxc3 {[%emt 0:0:0]} 45. Rxc3 {[%emt 0:0:20]} Bd5 {[%emt 0:0:21]} 46. Rc7+ {[%emt 0:0:29]} Kh6 {[%emt 0:0:25]} 47. Ra7 {[%emt 0:0:26]} Nf4 {[%emt 0:0:24]} 48. g3 {[%emt 0:0:21]
} Ne2 {[%emt 0:0:36]} 49. Rxa6 {[%emt 0:0:21]} Nc3 {[%emt 0:0:0]} 50. Bd3 {[%emt 0:0:24]} Kg5 {[%emt 0:0:53]} 51. Bf1 {[%emt 0:1:26]} Be4 {[%emt 0:1:7]} 52. a4 {[%emt 0:0:37]} b4 {[%emt 0:0:22]} 53. Bc4 {[%emt 0:0:0]} h5 {[%emt 0:0:52]} 54. Rb6 {[%emt 0:0:40]} Na2 {[%emt 0:0:24]} 55. a5 {[%emt 0:0:22]} f4 {[%emt 0:0:30]} 56. gxf4+ {[%emt 0:0:14]} Kxf4 {[%emt 0:0:20]
} 57. a6 {[%emt 0:0:23]} Nc3 {[%emt 0:0:25]} 58. a7 {[%emt 0:0:0]} Nd1 {[%emt 0:0:23]} 59. Rf6+ {[%emt 0:0:24]} Kg5 {[%emt 0:0:24]} 60. Re6 {[%emt 0:0:30]} Bf3 {[%emt 0:0:24]} 61. Re8 {[%emt 0:0:33]} Kf6 {[%emt 0:0:49]
} 1-0

[Event "RUS-ch Rapid Women 2021"]
[White "Gubernatorova,Lyudmila"]
[Black "Potapova,Margarita"]
[Site "Sochi"]
[Round "1.6"]
[Annotator "NA"]
[Result "0-1"]
[Date "2021.10.12"]
[WhiteElo "2130"]
[BlackElo "2257"]
[PlyCount "64"]
[TimeControl "5400+30"]

1. d4 {[%emt 1:15:42]} Nf6 {[%emt 1:15:42]} 2. c4 {[%emt 0:0:20]} e6 {[%emt 0:0:0]} 3. Nf3 {[%emt 0:0:24]} d5 {[%emt 0:0:27]} 4. Bg5 {[%emt 0:0:47]} dxc4 {[%emt 0:0:26]} 5. Nc3 {[%emt 0:0:24]} Bb4 {[%emt 0:2:53]} 6. e4 {[%emt 0:0:25]
} h6 {[%emt 0:0:39]} 7. Bxf6 {[%emt 0:0:28]} Qxf6 {[%emt 0:0:0]} 8. Bxc4 {[%emt 0:0:22]} c5 {[%emt 0:0:22]} 9. 0-0 {[%emt 0:0:40]} cxd4 {[%emt 0:0:37]} 10. e5 {[%emt 0:0:24]} Qd8 {[%emt 0:0:22]} 11. Ne4 {[%emt 0:0:0]} Nc6 {[%emt 0:0:26]} 12. a3 {[%emt 0:0:25]} Be7 {[%emt 0:0:29]} 13. Qe2 {[%emt 0:0:43]} a6 {[%emt 0:0:42]} 14. Ng3 {[%emt 0:0:45]} b5 {[%emt 0:0:0]} 15. Bd3 {[%emt 0:0:27]} Bb7 {[%emt 0:0:22]} 16. Rfe1 {[%emt 0:0:55]} Qb6 {[%emt 0:0:26]} 17. Nh5 {[%emt 0:0:48]} 0-0-0 {[%emt 0:1:12]} 18. b4 {[%emt 0:0:55]
} Kb8 {[%emt 0:0:58]} 19. Ng3 {[%emt 0:2:42]} g5 {[%emt 0:0:0]} 20. a4 {[%emt 0:0:52]} Nxb4 {[%emt 0:0:33]} 21. axb5 {[%emt 0:1:23]} axb5 {[%emt 0:2:13]} 22. Ne4 {[%emt 0:1:34]} Nd5 {[%emt 0:1:29]} 23. Bxb5 {[%emt 0:1:45]
} g4 {[%emt 0:1:54]} 24. Nfd2 {[%emt 0:2:38]} d3 {[%emt 0:0:0]} 25. Qxd3 {[%emt 0:0:38]} Nb4 {[%emt 0:0:47]} 26. Qe2 {[%emt 0:2:22]} Nc2 {[%emt 0:2:23]} 27. Nc4 {[%emt 0:1:8]} Qxb5 {[%emt 0:0:26]} 28. Qxc2 {[%emt 0:0:22]
} Rc8 {[%emt 0:0:51]} 29. Reb1 {[%emt 0:1:53]} Qxc4 {[%emt 0:0:0]} 30. Rxb7+ {[%emt 0:1:20]} Kxb7 {[%emt 0:0:21]} 31. Qb2+ {[%emt 0:0:0]} Qb4 {[%emt 0:0:35]} 32. Qa2 {[%emt 0:0:41]} Ra8 {[%emt 0:0:24]} 0-1

[Event "RUS-ch Rapid Women 2021"]
[White "Kovalevskaya,Ekaterina"]
[Black "Miroshnik,Ekaterina"]
[Site "Sochi"]
[Round "2.1"]
[Annotator "ChessBase"]
[Result "1/2-1/2"]
[Date "2021.10.12"]
[WhiteElo "2364"]
[BlackElo "2092"]
[PlyCount "121"]
[TimeControl "5400+30"]

1. Nf3 {[%emt 1:15:43]} e6 {[%emt 1:15:42]} 2. g3 {[%emt 0:0:24]} b6 {[%emt 0:0:0]} 3. Bg2 {[%emt 0:0:22]} Bb7 {[%emt 0:0:21]} 4. 0-0 {[%emt 0:0:22]} Nf6 {[%emt 0:0:21]} 5. c4 {[%emt 0:0:52]} d6 {[%emt 0:1:14]} 6. Nc3 {[%emt 0:0:31]
} Be7 {[%emt 0:0:26]} 7. Re1 {[%emt 0:0:43]} Nbd7 {[%emt 0:0:0]} 8. e4 {[%emt 0:0:30]} 0-0 {[%emt 0:0:45]} 9. d4 {[%emt 0:0:28]} e5 {[%emt 0:0:31]
} 10. h3 {[%emt 0:1:1]} c6 {[%emt 0:0:54]} 11. Be3 {[%emt 0:0:0]} Re8 {[%emt 0:0:38]} 12. Qc2 {[%emt 0:1:7]} a6 {[%emt 0:0:49]} 13. Rad1 {[%emt 0:1:34]} Qc7 {[%emt 0:0:29]} 14. Rd2 {[%emt 0:5:36]} Rad8 {[%emt 0:1:56]
} 15. Red1 {[%emt 0:0:54]} Qb8 {[%emt 0:1:9]} 16. dxe5 {[%emt 0:1:23]
} dxe5 {[%emt 0:0:41]} 17. Nh4 {[%emt 0:0:22]} g6 {[%emt 0:0:0]} 18. f4 {[%emt 0:1:18]} exf4 {[%emt 0:2:45]} 19. Bxf4 {[%emt 0:0:59]} Ne5 {[%emt 0:0:23]} 20. Nf3 {[%emt 0:2:14]} Rxd2 {[%emt 0:2:29]} 21. Rxd2 {[%emt 0:0:35]
} Bd6 {[%emt 0:2:14]} 22. Rxd6 {[%emt 0:0:34]} Qxd6 {[%emt 0:0:0]} 23. Bxe5 {[%emt 0:1:5]} Rxe5 {[%emt 0:0:24]} 24. Nxe5 {[%emt 0:0:0]} Qxe5 {[%emt 0:0:22]} 25. Qd3 {[%emt 0:0:30]} Kg7 {[%emt 0:1:39]} 26. Kf2 {[%emt 0:0:28]} h5 {[%emt 0:0:29]} 27. Ne2 {[%emt 0:0:42]} c5 {[%emt 0:0:0]} 28. Qc3 {[%emt 0:1:14]} Nd7 {[%emt 0:0:49]} 29. Ke3 {[%emt 0:0:45]} Kf6 {[%emt 0:0:43]} 30. b3 {[%emt 0:0:28]} Qxc3+ {[%emt 0:0:36]} 31. Nxc3 {[%emt 0:0:22]
} Ke5 {[%emt 0:0:22]} 32. Bf3 {[%emt 0:0:25]} Bc6 {[%emt 0:0:0]} 33. Ne2 {[%emt 0:0:54]} Nf6 {[%emt 0:0:44]} 34. Nf4 {[%emt 0:0:36]} Nd7 {[%emt 0:1:18]} 35. Nd3+ {[%emt 0:0:26]} Ke6 {[%emt 0:0:21]} 36. g4 {[%emt 0:0:50]
} hxg4 {[%emt 0:0:41]} 37. Bxg4+ {[%emt 0:0:32]} f5 {[%emt 0:0:0]} 38. exf5+ {[%emt 0:0:28]} gxf5 {[%emt 0:0:20]} 39. Bf3 {[%emt 0:0:0]} Bxf3 {[%emt 0:0:43]} 40. Kxf3 {[%emt 0:0:21]} b5 {[%emt 0:0:29]} 41. h4 {[%emt 0:0:38]} Kf6 {[%emt 0:0:28]} 42. Kf4 {[%emt 0:0:34]} bxc4 {[%emt 0:0:0]} 43. bxc4 {[%emt 0:0:22]} a5 {[%emt 0:0:27]} 44. h5 {[%emt 0:0:41]} Nb6 {[%emt 0:0:37]} 45. Ne5 {[%emt 0:0:30]} Na4 {[%emt 0:0:46]} 46. Nd7+ {[%emt 0:0:27]
} Kg7 {[%emt 0:0:23]} 47. Kxf5 {[%emt 0:0:40]} Nc3 {[%emt 0:0:0]} 48. Kg5 {[%emt 0:0:39]} Ne4+ {[%emt 0:0:22]} 49. Kf4 {[%emt 0:0:27]} Nc3 {[%emt 0:0:30]} 50. Nxc5 {[%emt 0:0:36]} Nxa2 {[%emt 0:0:20]} 51. Na4 {[%emt 0:0:26]
} Kh6 {[%emt 0:0:33]} 52. c5 {[%emt 0:0:28]} Nb4 {[%emt 0:0:0]} 53. Ke4 {[%emt 0:0:25]} Kxh5 {[%emt 0:0:25]} 54. Kd4 {[%emt 0:0:21]} Kg5 {[%emt 0:0:25]} 55. Kc4 {[%emt 0:0:23]} Kf5 {[%emt 0:0:32]} 56. Kb5 {[%emt 0:0:21]
} Ke6 {[%emt 0:0:49]} 57. Kxa5 {[%emt 0:0:21]} Nd3 {[%emt 0:0:0]} 58. c6 {[%emt 0:0:23]} Kd6 {[%emt 0:0:22]} 59. Kb6 {[%emt 0:1:0]} Nb4 {[%emt 0:0:21]} 60. Nc3 {[%emt 0:0:21]} Nxc6 {[%emt 0:0:23]} 61. Nb5+ {[%emt 0:0:22]
} 1/2-1/2

[Event "RUS-ch Rapid Women 2021"]
[White "Styazhkina,Anna"]
[Black "Goltseva,Ekaterina"]
[Site "Sochi"]
[Round "2.2"]
[Annotator "NA"]
[Result "0-1"]
[Date "2021.10.12"]
[WhiteElo "2228"]
[BlackElo "2304"]
[PlyCount "78"]
[TimeControl "5400+30"]

1. e4 {[%emt 1:15:43]} e5 {[%emt 1:15:41]} 2. Nf3 {[%emt 0:0:33]} Nc6 {[%emt 0:0:21]
} 3. Bc4 {[%emt 0:1:2]} Nf6 {[%emt 0:0:22]} 4. d3 {[%emt 0:0:0]} Be7 {[%emt 0:0:23]} 5. 0-0 {[%emt 0:0:46]} 0-0 {[%emt 0:0:22]} 6. c3 {[%emt 0:1:20]
} d5 {[%emt 0:0:41]} 7. exd5 {[%emt 0:0:47]} Nxd5 {[%emt 0:0:0]} 8. Re1 {[%emt 0:0:29]} Bg4 {[%emt 0:0:39]} 9. h3 {[%emt 0:0:23]} Bh5 {[%emt 0:0:35]
} 10. Nbd2 {[%emt 0:0:52]} Nb6 {[%emt 0:1:10]} 11. Bb3 {[%emt 0:1:40]
} Qxd3 {[%emt 0:5:20]} 12. Nxe5 {[%emt 0:1:6]} Bxd1 {[%emt 0:0:0]} 13. Nxd3 {[%emt 0:0:24]} Bxb3 {[%emt 0:0:24]} 14. Nxb3 {[%emt 0:0:0]} Nc4 {[%emt 0:2:11]} 15. Bf4 {[%emt 0:1:9]} Bd6 {[%emt 0:0:54]} 16. Bxd6 {[%emt 0:0:43]} Nxd6 {[%emt 0:0:29]} 17. Nbc5 {[%emt 0:0:36]} Rad8 {[%emt 0:1:6]
} 18. Nf4 {[%emt 0:1:27]} b6 {[%emt 0:1:18]} 19. Na6 {[%emt 0:0:0]} Rd7 {[%emt 0:2:18]} 20. Rad1 {[%emt 0:0:49]} Rfd8 {[%emt 0:0:51]} 21. Nxc7 {[%emt 0:1:8]} h6 {[%emt 0:1:48]} 22. Ncd5 {[%emt 0:1:23]} Nc4 {[%emt 0:0:46]
} 23. b3 {[%emt 0:0:31]} Na3 {[%emt 0:0:43]} 24. Rd3 {[%emt 0:0:0]} Kf8 {[%emt 0:1:15]} 25. c4 {[%emt 0:2:57]} b5 {[%emt 0:0:35]} 26. Re4 {[%emt 0:2:14]} bxc4 {[%emt 0:0:51]} 27. bxc4 {[%emt 0:0:22]} Nxc4 {[%emt 0:0:38]
} 28. Rf3 {[%emt 0:0:42]} Nd2 {[%emt 0:0:46]} 29. Ne6+ {[%emt 0:0:31]
} Kg8 {[%emt 0:0:22]} 30. Nxd8 {[%emt 0:0:24]} Nxf3+ {[%emt 0:0:0]} 31. gxf3 {[%emt 0:0:22]} Rxd8 {[%emt 0:0:30]} 32. Ne3 {[%emt 0:0:40]
} Rd2 {[%emt 0:0:53]} 33. Ra4 {[%emt 0:0:25]} a5 {[%emt 0:0:32]} 34. Kg2 {[%emt 0:0:38]
} g6 {[%emt 0:0:25]} 35. Ng4 {[%emt 0:0:28]} Kg7 {[%emt 0:0:0]} 36. Rc4 {[%emt 0:0:29]} h5 {[%emt 0:0:36]} 37. Ne3 {[%emt 0:0:34]} Nb4 {[%emt 0:0:25]} 38. a3 {[%emt 0:0:28]} Nd3 {[%emt 0:0:33]} 39. Rc2 {[%emt 0:0:0]} Ne1+ {[%emt 0:0:22]} 0-1